[Event "*** Titled Tuesday Blitz"]
[Site "Chess.com"]
[Date "2021.02.16"]
[Round "5"]
[White "Happy1712Drummer"]
[Black "Susal_De_Silva"]
[Result "1-0"]
[WhiteElo "2448"]
[BlackElo "2620"]
[TimeControl "180+1"]
[EndTime "10:58:19 PST"]
[Termination "Happy1712Drummer won on time"]

1. Nf3 {[%clk 0:01:47.4]} 1... Nf6 {[%clk 0:02:59.4]} 2. c4 {[%clk 0:01:44.2]}
2... b6 {[%clk 0:02:59.3]} 3. Nc3 {[%clk 0:01:44.1]} 3... Bb7 {[%clk 0:03:00.2]}
4. g3 {[%clk 0:01:44.7]} 4... g6 {[%clk 0:02:59.9]} 5. Bg2 {[%clk 0:01:44.9]}
5... Bg7 {[%clk 0:03:00.8]} 6. O-O {[%clk 0:01:45.3]} 6... O-O {[%clk
0:03:00.8]} 7. b3 {[%clk 0:01:45.6]} 7... d6 {[%clk 0:02:59.8]} 8. Bb2 {[%clk
0:01:45]} 8... Nbd7 {[%clk 0:02:59.3]} 9. Qc2 {[%clk 0:01:43.7]} 9... e5 {[%clk
0:02:58]} 10. Rad1 {[%clk 0:01:40.8]} 10... Re8 {[%clk 0:02:56.8]} 11. d4 {[%clk
0:01:40.4]} 11... exd4 {[%clk 0:02:35.1]} 12. Nxd4 {[%clk 0:01:41.3]} 12... Bxg2
{[%clk 0:02:35.7]} 13. Kxg2 {[%clk 0:01:39.8]} 13... Nc5 {[%clk 0:02:35.1]} 14.
f3 {[%clk 0:01:38.6]} 14... Qd7 {[%clk 0:02:29.3]} 15. e4 {[%clk 0:01:38.3]}
15... h5 {[%clk 0:02:24.7]} 16. h4 {[%clk 0:01:36.8]} 16... a5 {[%clk
0:02:20.1]} 17. Nd5 {[%clk 0:01:30.5]} 17... Nxd5 {[%clk 0:02:17.6]} 18. cxd5
{[%clk 0:01:30.3]} 18... a4 {[%clk 0:01:58.7]} 19. b4 {[%clk 0:01:28.4]} 19...
a3 {[%clk 0:01:50.1]} 20. Ba1 {[%clk 0:01:22.2]} 20... Na6 {[%clk 0:01:41.3]}
21. Nc6 {[%clk 0:01:19.1]} 21... Bxa1 {[%clk 0:01:38]} 22. Rxa1 {[%clk 0:01:20]}
22... Nb8 {[%clk 0:01:34.1]} 23. Nd4 {[%clk 0:01:18.3]} 23... Na6 {[%clk
0:01:25.5]} 24. Rab1 {[%clk 0:01:16.7]} 24... Rec8 {[%clk 0:01:19.7]} 25. Rfc1
{[%clk 0:01:15.1]} 25... Nb8 {[%clk 0:01:19.1]} 26. Rb3 {[%clk 0:01:09.4]} 26...
Qe8 {[%clk 0:01:08]} 27. Rc3 {[%clk 0:01:05.6]} 27... Na6 {[%clk 0:01:04.6]} 28.
Qb3 {[%clk 0:00:58]} 28... Qe5 {[%clk 0:00:51.2]} 29. Nb5 {[%clk 0:00:54.6]}
29... g5 {[%clk 0:00:42.6]} 30. hxg5 {[%clk 0:00:51.7]} 30... Qxg5 {[%clk
0:00:43.5]} 31. f4 {[%clk 0:00:29.6]} 31... Qg7 {[%clk 0:00:41.1]} 32. Nxd6
{[%clk 0:00:26]} 32... Rd8 {[%clk 0:00:20.6]} 33. Nf5 {[%clk 0:00:25.8]} 33...
Qf6 {[%clk 0:00:17.1]} 34. R1c2 {[%clk 0:00:21.5]} 34... Re8 {[%clk 0:00:17.1]}
35. Rc6 {[%clk 0:00:21.2]} 35... Qh8 {[%clk 0:00:13.7]} 36. Qc4 {[%clk
0:00:18.4]} 36... b5 {[%clk 0:00:04.7]} 37. Qe2 {[%clk 0:00:14.7]} 37... Nxb4
{[%clk 0:00:04.3]} 38. Rh6 {[%clk 0:00:14.1]} 38... Nxc2 {[%clk 0:00:03.6]} 39.
Rxh8+ {[%clk 0:00:12.9]} 39... Kxh8 {[%clk 0:00:04.5]} 40. Qxh5+ {[%clk
0:00:12.6]} 40... Kg8 {[%clk 0:00:04.7]} 41. Qg5+ {[%clk 0:00:12.6]} 1-0

[Event "*** Titled Tuesday Blitz"]
[Site "Chess.com"]
[Date "2021.02.16"]
[Round "5"]
[White "ajedrez1101"]
[Black "Kostukov_Alex"]
[Result "1-0"]
[WhiteElo "2120"]
[BlackElo "2326"]
[TimeControl "180+1"]
[EndTime "10:58:19 PST"]
[Termination "ajedrez1101 won by resignation"]

1. d4 {[%clk 0:03:00.9]} 1... g6 {[%clk 0:02:59.7]} 2. Bf4 {[%clk 0:02:55.2]}
2... Bg7 {[%clk 0:02:58.9]} 3. Nc3 {[%clk 0:02:55.4]} 3... d6 {[%clk 0:02:58.8]}
4. Qd2 {[%clk 0:02:52.8]} 4... e5 {[%clk 0:02:57.8]} 5. dxe5 {[%clk 0:02:49.7]}
5... dxe5 {[%clk 0:02:58.7]} 6. Qxd8+ {[%clk 0:02:49.8]} 6... Kxd8 {[%clk
0:02:59.6]} 7. O-O-O+ {[%clk 0:02:50]} 7... Nd7 {[%clk 0:02:59.6]} 8. Be3 {[%clk
0:02:18.7]} 8... Bh6 {[%clk 0:02:54.4]} 9. Bxh6 {[%clk 0:01:55.7]} 9... Nxh6
{[%clk 0:02:55.3]} 10. h3 {[%clk 0:01:52]} 10... f6 {[%clk 0:02:39.3]} 11. Ne4
{[%clk 0:01:45.1]} 11... Rf8 {[%clk 0:02:33.8]} 12. e3 {[%clk 0:01:39.8]} 12...
Ke7 {[%clk 0:02:32.3]} 13. Ne2 {[%clk 0:01:32.9]} 13... Nf7 {[%clk 0:02:19.7]}
14. N2c3 {[%clk 0:01:32.2]} 14... c6 {[%clk 0:02:18]} 15. Bc4 {[%clk 0:01:29.7]}
15... f5 {[%clk 0:01:38.8]} 16. Bxf7 {[%clk 0:01:25.4]} 16... fxe4 {[%clk
0:01:27.2]} 17. Bb3 {[%clk 0:01:06.9]} 17... Rxf2 {[%clk 0:01:12.4]} 18. Nxe4
{[%clk 0:01:05.7]} 18... Rxg2 {[%clk 0:01:12.4]} 19. Rhf1 {[%clk 0:00:59.1]}
19... a5 {[%clk 0:00:20.2]} 20. Rf7+ {[%clk 0:00:47.7]} 20... Ke8 {[%clk
0:00:19.8]} 21. Nd6+ {[%clk 0:00:44.1]} 21... Kd8 {[%clk 0:00:19.9]} 22. Nxc8
{[%clk 0:00:43.8]} 22... Kxc8 {[%clk 0:00:20.8]} 23. Rfxd7 {[%clk 0:00:41.4]}
23... Kb8 {[%clk 0:00:19.3]} 24. Rd8+ {[%clk 0:00:39.9]} 24... Ka7 {[%clk
0:00:19.4]} 25. Rxa8+ {[%clk 0:00:36.7]} 25... Kxa8 {[%clk 0:00:19.6]} 26. Rd8+
{[%clk 0:00:37.3]} 26... Ka7 {[%clk 0:00:19.8]} 27. Be6 {[%clk 0:00:35.6]} 27...
h5 {[%clk 0:00:17.6]} 28. Rg8 {[%clk 0:00:35.2]} 28... h4 {[%clk 0:00:17.4]} 29.
Bg4 {[%clk 0:00:34.2]} 29... Rg3 {[%clk 0:00:14.9]} 30. Kd2 {[%clk 0:00:33]}
30... b5 {[%clk 0:00:13.1]} 31. Rxg6 {[%clk 0:00:32.2]} 31... Kb6 {[%clk
0:00:13.5]} 32. Re6 {[%clk 0:00:32]} 32... b4 {[%clk 0:00:13.1]} 33. Rxe5 {[%clk
0:00:32.1]} 33... Rg2+ {[%clk 0:00:13.7]} 34. Kd3 {[%clk 0:00:31.7]} 34... c5
{[%clk 0:00:13]} 35. b3 {[%clk 0:00:30.5]} 35... Rg1 {[%clk 0:00:12]} 36. Re6+
{[%clk 0:00:28.9]} 36... Kc7 {[%clk 0:00:11.7]} 37. Rf6 {[%clk 0:00:26.9]} 37...
Ra1 {[%clk 0:00:10.9]} 38. Rf5 {[%clk 0:00:26.3]} 38... Kb6 {[%clk 0:00:10.4]}
39. e4 {[%clk 0:00:26.4]} 39... Rxa2 {[%clk 0:00:10.4]} 40. e5 {[%clk
0:00:26.5]} 40... a4 {[%clk 0:00:10.9]} 41. bxa4 {[%clk 0:00:26.1]} 41... Rxa4
{[%clk 0:00:11.8]} 42. Rf4 {[%clk 0:00:25.1]} 42... Ra3+ {[%clk 0:00:12]} 43.
Kd2 {[%clk 0:00:24.9]} 43... Kc6 {[%clk 0:00:10.6]} 44. e6 {[%clk 0:00:23.8]}
44... Kd6 {[%clk 0:00:11.1]} 45. Re4 {[%clk 0:00:23.8]} 45... Ra7 {[%clk
0:00:10.3]} 46. e7 {[%clk 0:00:20.7]} 46... Rxe7 {[%clk 0:00:09.9]} 47. Rxe7
{[%clk 0:00:20.9]} 47... Kxe7 {[%clk 0:00:10.8]} 48. Kd3 {[%clk 0:00:21.4]}
48... Kd6 {[%clk 0:00:11.1]} 49. Kc4 {[%clk 0:00:21.9]} 49... Ke5 {[%clk
0:00:10.8]} 50. Kxc5 {[%clk 0:00:21.5]} 1-0

[Event "*** Titled Tuesday Blitz"]
[Site "Chess.com"]
[Date "2021.02.16"]
[Round "5"]
[White "Angel_Hranitel_37"]
[Black "Vincent_Vega95"]
[Result "0-1"]
[WhiteElo "2494"]
[BlackElo "2698"]
[TimeControl "180+1"]
[EndTime "10:58:20 PST"]
[Termination "Vincent_Vega95 won by checkmate"]

1. d4 {[%clk 0:03:00.9]} 1... Nf6 {[%clk 0:02:19.1]} 2. Nf3 {[%clk 0:02:59.4]}
2... g6 {[%clk 0:02:19.2]} 3. g3 {[%clk 0:02:59.3]} 3... Bg7 {[%clk 0:02:19.9]}
4. Bg2 {[%clk 0:03:00.2]} 4... O-O {[%clk 0:02:20.6]} 5. O-O {[%clk 0:03:01.1]}
5... d6 {[%clk 0:02:21.3]} 6. c4 {[%clk 0:02:57.8]} 6... c6 {[%clk 0:02:21.6]}
7. Nc3 {[%clk 0:02:57]} 7... Bf5 {[%clk 0:02:21.2]} 8. Nh4 {[%clk 0:02:25.8]}
8... Be6 {[%clk 0:02:20.5]} 9. b3 {[%clk 0:02:22.3]} 9... d5 {[%clk 0:02:18.8]}
10. cxd5 {[%clk 0:02:17]} 10... cxd5 {[%clk 0:02:19.7]} 11. a4 {[%clk 0:02:02]}
11... Nc6 {[%clk 0:02:19.5]} 12. Ba3 {[%clk 0:02:00.8]} 12... Qd7 {[%clk
0:02:10.5]} 13. e3 {[%clk 0:01:49.4]} 13... Bh3 {[%clk 0:02:09.5]} 14. Nf3
{[%clk 0:01:44.2]} 14... Bxg2 {[%clk 0:02:08.7]} 15. Kxg2 {[%clk 0:01:45.1]}
15... Rfc8 {[%clk 0:02:07.7]} 16. Qd3 {[%clk 0:01:42.3]} 16... Ne8 {[%clk
0:01:44]} 17. Rfc1 {[%clk 0:00:58.9]} 17... e6 {[%clk 0:01:44.1]} 18. Rab1
{[%clk 0:00:58.3]} 18... Nd6 {[%clk 0:01:41.9]} 19. Nb5 {[%clk 0:00:55.4]} 19...
Ne4 {[%clk 0:01:41.7]} 20. Nd2 {[%clk 0:00:47.6]} 20... f5 {[%clk 0:01:39.3]}
21. f3 {[%clk 0:00:46]} 21... Ng5 {[%clk 0:01:30.8]} 22. f4 {[%clk 0:00:46]}
22... Ne4 {[%clk 0:01:26]} 23. Nxe4 {[%clk 0:00:46.6]} 23... fxe4 {[%clk
0:01:26.1]} 24. Qd2 {[%clk 0:00:35.5]} 24... Bf8 {[%clk 0:01:25]} 25. Bxf8
{[%clk 0:00:17.8]} 25... Rxf8 {[%clk 0:01:25.9]} 26. Rc2 {[%clk 0:00:13.9]}
26... g5 {[%clk 0:01:22]} 27. Rf1 {[%clk 0:00:10.9]} 27... gxf4 {[%clk
0:01:21.9]} 28. Rxf4 {[%clk 0:00:11.6]} 28... Rxf4 {[%clk 0:01:16.4]} 29. gxf4
{[%clk 0:00:12.5]} 29... Kh8 {[%clk 0:01:16.6]} 30. Kf1 {[%clk 0:00:12.8]} 30...
Rg8 {[%clk 0:01:17.1]} 31. Qf2 {[%clk 0:00:12]} 31... Qg7 {[%clk 0:01:10.6]} 32.
Rc3 {[%clk 0:00:03.5]} 32... Qg4 {[%clk 0:01:10.3]} 33. Ke1 {[%clk 0:00:03.3]}
33... Qh3 {[%clk 0:01:09.2]} 34. Nd6 {[%clk 0:00:03]} 34... Rg2 {[%clk
0:01:09.2]} 35. Qf1 {[%clk 0:00:03.1]} 35... Qxh2 {[%clk 0:01:06.2]} 36. b4
{[%clk 0:00:03.2]} 36... Rg1 {[%clk 0:01:03.7]} 37. b5 {[%clk 0:00:02.9]} 37...
Rxf1+ {[%clk 0:00:58]} 38. Kxf1 {[%clk 0:00:03.8]} 38... Qd2 {[%clk 0:00:57.7]}
39. Rc5 {[%clk 0:00:03.7]} 39... Nb4 {[%clk 0:00:54.1]} 40. Rc8+ {[%clk
0:00:03.1]} 40... Kg7 {[%clk 0:00:54]} 41. Rc7+ {[%clk 0:00:03.2]} 41... Kg6
{[%clk 0:00:54.4]} 42. Re7 {[%clk 0:00:02.8]} 42... Nd3 {[%clk 0:00:53.1]} 43.
Rxe6+ {[%clk 0:00:03.7]} 43... Kg7 {[%clk 0:00:53.1]} 44. Re7+ {[%clk
0:00:04.1]} 44... Kf8 {[%clk 0:00:53.5]} 45. Re8+ {[%clk 0:00:04.7]} 45... Kg7
{[%clk 0:00:53.7]} 46. Re7+ {[%clk 0:00:05.6]} 46... Kh6 {[%clk 0:00:50]} 47.
Re6+ {[%clk 0:00:05.5]} 47... Kh5 {[%clk 0:00:49.4]} 48. Re5+ {[%clk 0:00:05.3]}
48... Kh4 {[%clk 0:00:47.4]} 49. Kg1 {[%clk 0:00:03.3]} 49... Qxe3+ {[%clk
0:00:44.8]} 50. Kh1 {[%clk 0:00:03.2]} 50... Qf3+ {[%clk 0:00:43.6]} 51. Kh2
{[%clk 0:00:03.1]} 51... Qf2+ {[%clk 0:00:43.2]} 52. Kh1 {[%clk 0:00:03.5]}
52... Ne1 {[%clk 0:00:36.9]} 53. Nf5+ {[%clk 0:00:02.6]} 53... Kh3 {[%clk
0:00:36.9]} 54. Re6 {[%clk 0:00:02.5]} 54... Qh2# {[%clk 0:00:35.9]} 0-1

[Event "*** Titled Tuesday Blitz"]
[Site "Chess.com"]
[Date "2021.02.16"]
[Round "5"]
[White "Markov_Mikhail"]
[Black "Mihnea2017"]
[Result "1-0"]
[WhiteElo "2695"]
[BlackElo "2458"]
[TimeControl "180+1"]
[EndTime "10:58:20 PST"]
[Termination "Markov_Mikhail won by resignation"]

1. c4 {[%clk 0:03:00.9]} 1... e5 {[%clk 0:02:59.6]} 2. Nc3 {[%clk 0:03:00.8]}
2... Nf6 {[%clk 0:02:59.4]} 3. Nf3 {[%clk 0:03:01.1]} 3... Nc6 {[%clk
0:02:59.2]} 4. a3 {[%clk 0:03:01.7]} 4... g6 {[%clk 0:02:53.8]} 5. g3 {[%clk
0:02:59.2]} 5... Bg7 {[%clk 0:02:53.8]} 6. Bg2 {[%clk 0:03:00]} 6... O-O {[%clk
0:02:53.9]} 7. O-O {[%clk 0:03:00.7]} 7... d6 {[%clk 0:02:53.3]} 8. Rb1 {[%clk
0:03:00.3]} 8... h6 {[%clk 0:02:47.3]} 9. b4 {[%clk 0:03:00.3]} 9... a6 {[%clk
0:02:47.2]} 10. d3 {[%clk 0:02:55]} 10... Be6 {[%clk 0:02:46.4]} 11. a4 {[%clk
0:02:53.7]} 11... Qd7 {[%clk 0:02:44.9]} 12. b5 {[%clk 0:02:52.4]} 12... axb5
{[%clk 0:02:44.1]} 13. axb5 {[%clk 0:02:53]} 13... Ne7 {[%clk 0:02:44.3]} 14.
Re1 {[%clk 0:02:52.7]} 14... Nh5 {[%clk 0:02:39.6]} 15. e4 {[%clk 0:02:49.7]}
15... c6 {[%clk 0:02:15.5]} 16. bxc6 {[%clk 0:02:43.9]} 16... bxc6 {[%clk
0:02:16.4]} 17. Nh4 {[%clk 0:02:10.2]} 17... Kh7 {[%clk 0:02:07.9]} 18. Bf3
{[%clk 0:02:05.8]} 18... Nf6 {[%clk 0:02:04.9]} 19. Qc2 {[%clk 0:01:44.6]} 19...
Rfb8 {[%clk 0:01:21.7]} 20. Be3 {[%clk 0:01:43.1]} 20... Qc8 {[%clk 0:01:06.9]}
21. c5 {[%clk 0:01:34.7]} 21... d5 {[%clk 0:01:02.9]} 22. exd5 {[%clk
0:01:34.9]} 22... Nexd5 {[%clk 0:00:53.2]} 23. Nxd5 {[%clk 0:01:34.7]} 23...
Nxd5 {[%clk 0:00:52.6]} 24. Bd2 {[%clk 0:01:30.7]} 24... Rxb1 {[%clk 0:00:49.6]}
25. Rxb1 {[%clk 0:01:30.2]} 25... f5 {[%clk 0:00:49]} 26. Bg2 {[%clk 0:01:24.5]}
26... Rb8 {[%clk 0:00:23.6]} 27. Re1 {[%clk 0:01:24.7]} 27... Rb5 {[%clk
0:00:18.7]} 28. Nf3 {[%clk 0:01:24.5]} 28... Qb8 {[%clk 0:00:18.1]} 29. Bc1
{[%clk 0:00:31.9]} 29... Bf7 {[%clk 0:00:17.3]} 30. h4 {[%clk 0:00:26.1]} 30...
Bf6 {[%clk 0:00:11.1]} 31. h5 {[%clk 0:00:25.9]} 31... g5 {[%clk 0:00:11.2]} 32.
d4 {[%clk 0:00:23.9]} 32... e4 {[%clk 0:00:11.3]} 33. Nd2 {[%clk 0:00:24.6]}
33... Bxd4 {[%clk 0:00:10.1]} 34. Nxe4 {[%clk 0:00:25.2]} 34... Bg7 {[%clk
0:00:07.5]} 35. Nd6 {[%clk 0:00:25.3]} 35... Rb7 {[%clk 0:00:07.1]} 36. Qxf5+
{[%clk 0:00:23.7]} 36... Kg8 {[%clk 0:00:07.1]} 37. Nxf7 {[%clk 0:00:23.5]}
37... Rxf7 {[%clk 0:00:07.2]} 38. Bxd5 {[%clk 0:00:24.3]} 38... cxd5 {[%clk
0:00:07]} 39. Qxd5 {[%clk 0:00:25.2]} 39... Qf8 {[%clk 0:00:05.4]} 40. c6 {[%clk
0:00:24.5]} 40... Kh8 {[%clk 0:00:05.6]} 41. Be3 {[%clk 0:00:24.8]} 41... Qc8
{[%clk 0:00:03.1]} 42. Rd1 {[%clk 0:00:23.9]} 42... Rc7 {[%clk 0:00:02.7]} 43.
Qa5 {[%clk 0:00:15]} 43... Rxc6 {[%clk 0:00:02.6]} 44. Rd8+ {[%clk 0:00:15.3]}
1-0

[Event "*** Titled Tuesday Blitz"]
[Site "Chess.com"]
[Date "2021.02.16"]
[Round "5"]
[White "Manukyan_Artak"]
[Black "louis198"]
[Result "1-0"]
[WhiteElo "2404"]
[BlackElo "2538"]
[TimeControl "180+1"]
[EndTime "10:58:22 PST"]
[Termination "Manukyan_Artak won by resignation"]

1. e4 {[%clk 0:03:00.9]} 1... e6 {[%clk 0:03:00.4]} 2. d4 {[%clk 0:03:00.4]}
2... d5 {[%clk 0:03:01.3]} 3. e5 {[%clk 0:03:00.8]} 3... c5 {[%clk 0:03:01.1]}
4. c3 {[%clk 0:03:01.2]} 4... Ne7 {[%clk 0:03:01.5]} 5. Nf3 {[%clk 0:03:01.7]}
5... Nec6 {[%clk 0:03:01.9]} 6. a3 {[%clk 0:03:01.9]} 6... Be7 {[%clk
0:02:57.1]} 7. b4 {[%clk 0:03:01.9]} 7... cxd4 {[%clk 0:02:56.7]} 8. cxd4 {[%clk
0:03:01.6]} 8... a6 {[%clk 0:02:57.1]} 9. Bd3 {[%clk 0:02:56.5]} 9... h6 {[%clk
0:02:56]} 10. Nc3 {[%clk 0:02:52.4]} 10... O-O {[%clk 0:02:55.5]} 11. O-O {[%clk
0:02:50.7]} 11... Nd7 {[%clk 0:02:55]} 12. Na4 {[%clk 0:02:41.2]} 12... f6
{[%clk 0:02:52.3]} 13. Bb2 {[%clk 0:02:29.4]} 13... fxe5 {[%clk 0:02:50.6]} 14.
dxe5 {[%clk 0:02:13.7]} 14... b5 {[%clk 0:02:42.9]} 15. Rc1 {[%clk 0:01:57.2]}
15... Bb7 {[%clk 0:02:40.3]} 16. Nc5 {[%clk 0:01:51.3]} 16... Nxc5 {[%clk
0:02:39.1]} 17. bxc5 {[%clk 0:01:52.2]} 17... Na5 {[%clk 0:02:37.2]} 18. Nd4
{[%clk 0:01:46.3]} 18... Bc8 {[%clk 0:02:31.9]} 19. Qg4 {[%clk 0:01:33.3]} 19...
Nc4 {[%clk 0:01:33.2]} 20. Qg6 {[%clk 0:00:57.5]} 20... Nxe5 {[%clk 0:01:23.1]}
21. Qh7+ {[%clk 0:00:57]} 21... Kf7 {[%clk 0:01:22.3]} 22. Nc6 {[%clk
0:00:33.3]} 22... Nxd3 {[%clk 0:01:00.3]} 23. Nxd8+ {[%clk 0:00:32.2]} 23...
Rxd8 {[%clk 0:00:56.2]} 24. Qxg7+ {[%clk 0:00:24.3]} 24... Ke8 {[%clk 0:00:56]}
25. Qg6+ {[%clk 0:00:24.6]} 25... Kd7 {[%clk 0:00:56.1]} 26. c6+ {[%clk
0:00:24.4]} 26... Kc7 {[%clk 0:00:54.6]} 27. Qxd3 {[%clk 0:00:24.4]} 27... Bd6
{[%clk 0:00:54.8]} 28. Qh7+ {[%clk 0:00:23]} 28... Kb6 {[%clk 0:00:54.4]} 29.
Bd4+ {[%clk 0:00:22.4]} 29... Ka5 {[%clk 0:00:53.2]} 30. Qxh6 {[%clk 0:00:14.3]}
30... e5 {[%clk 0:00:52.7]} 31. Qd2+ {[%clk 0:00:13.9]} 31... b4 {[%clk
0:00:47.4]} 32. axb4+ {[%clk 0:00:13.1]} 32... Kb5 {[%clk 0:00:47.5]} 33. Bc5
{[%clk 0:00:12.9]} 33... Kxc6 {[%clk 0:00:43]} 34. Bxd6+ {[%clk 0:00:12.1]}
34... Kxd6 {[%clk 0:00:43]} 35. Rfd1 {[%clk 0:00:11.4]} 35... Be6 {[%clk
0:00:42.9]} 36. f4 {[%clk 0:00:09.3]} 36... e4 {[%clk 0:00:41.4]} 37. Qd4 {[%clk
0:00:09.4]} 37... Ra7 {[%clk 0:00:36.1]} 38. Qe5+ {[%clk 0:00:10.3]} 38... Kd7
{[%clk 0:00:36.5]} 39. Rc5 {[%clk 0:00:09.8]} 39... Re8 {[%clk 0:00:35.7]} 40.
Rcxd5+ {[%clk 0:00:09.4]} 40... Bxd5 {[%clk 0:00:36.1]} 41. Qxd5+ {[%clk
0:00:10]} 41... Kc7 {[%clk 0:00:32.1]} 42. Qc5+ {[%clk 0:00:10.9]} 42... Kb8
{[%clk 0:00:31.7]} 43. Qd6+ {[%clk 0:00:08.7]} 43... Rc7 {[%clk 0:00:27.1]} 44.
Rc1 {[%clk 0:00:08.6]} 44... Rc8 {[%clk 0:00:26.4]} 45. Kf2 {[%clk 0:00:08.9]}
45... Kb7 {[%clk 0:00:26.7]} 46. Rxc7+ {[%clk 0:00:08.7]} 46... Rxc7 {[%clk
0:00:27.6]} 47. Ke3 {[%clk 0:00:08.8]} 47... Rc6 {[%clk 0:00:26.2]} 48. Qd5
{[%clk 0:00:08.5]} 48... Kb6 {[%clk 0:00:26.6]} 49. Kxe4 {[%clk 0:00:08.7]} 1-0

[Event "*** Titled Tuesday Blitz"]
[Site "Chess.com"]
[Date "2021.02.16"]
[Round "5"]
[White "chessdjw"]
[Black "amintabatabaei"]
[Result "0-1"]
[WhiteElo "2718"]
[BlackElo "2924"]
[TimeControl "180+1"]
[EndTime "10:58:23 PST"]
[Termination "amintabatabaei won on time"]

1. e4 {[%clk 0:03:00.9]} 1... c6 {[%clk 0:03:00.2]} 2. Nf3 {[%clk 0:02:57.7]}
2... d5 {[%clk 0:03:01.1]} 3. Nc3 {[%clk 0:02:57.9]} 3... dxe4 {[%clk
0:03:01.4]} 4. Nxe4 {[%clk 0:02:58.8]} 4... Nf6 {[%clk 0:03:02.3]} 5. Qe2 {[%clk
0:02:58.9]} 5... Nxe4 {[%clk 0:02:57.8]} 6. Qxe4 {[%clk 0:02:59.8]} 6... Be6
{[%clk 0:02:57.9]} 7. b3 {[%clk 0:02:56.7]} 7... Nd7 {[%clk 0:02:53.9]} 8. Bb2
{[%clk 0:02:55.9]} 8... Nf6 {[%clk 0:02:54.3]} 9. Qe3 {[%clk 0:02:51]} 9... Bf5
{[%clk 0:02:41.1]} 10. Nd4 {[%clk 0:02:42.4]} 10... Bg6 {[%clk 0:02:37.9]} 11.
f4 {[%clk 0:02:42.9]} 11... Nd5 {[%clk 0:02:27.6]} 12. Qf2 {[%clk 0:02:42]}
12... e6 {[%clk 0:02:23.6]} 13. f5 {[%clk 0:02:36.2]} 13... exf5 {[%clk
0:02:23.7]} 14. Nxf5 {[%clk 0:02:36.8]} 14... Bxf5 {[%clk 0:02:00.3]} 15. Qxf5
{[%clk 0:02:37.7]} 15... Qd7 {[%clk 0:01:42.1]} 16. Bd3 {[%clk 0:02:26]} 16...
O-O-O {[%clk 0:01:31.6]} 17. Qxd7+ {[%clk 0:02:22.7]} 17... Kxd7 {[%clk
0:01:32.5]} 18. O-O {[%clk 0:02:11.6]} 18... f6 {[%clk 0:01:32.1]} 19. Bf5+
{[%clk 0:02:05.3]} 19... Kc7 {[%clk 0:01:32.5]} 20. a3 {[%clk 0:02:00.8]} 20...
Ne7 {[%clk 0:01:16.2]} 21. Bd3 {[%clk 0:01:58.4]} 21... Ng6 {[%clk 0:01:16.5]}
22. b4 {[%clk 0:01:52]} 22... Bd6 {[%clk 0:01:14.9]} 23. Rae1 {[%clk 0:01:13.5]}
23... Be5 {[%clk 0:01:13.2]} 24. Bxg6 {[%clk 0:01:12.4]} 24... Bxb2 {[%clk
0:01:13.2]} 25. Re7+ {[%clk 0:00:48.6]} 25... Kd6 {[%clk 0:01:06.3]} 26. Rxg7
{[%clk 0:00:48.4]} 26... hxg6 {[%clk 0:01:06]} 27. c3 {[%clk 0:00:36.6]} 27...
Ke6 {[%clk 0:01:03.8]} 28. Rxg6 {[%clk 0:00:24.5]} 28... Rxd2 {[%clk 0:00:57]}
29. Rgxf6+ {[%clk 0:00:24.3]} 29... Kd7 {[%clk 0:00:46]} 30. Rf7+ {[%clk
0:00:23.8]} 30... Kc8 {[%clk 0:00:46.2]} 31. R1f3 {[%clk 0:00:21.5]} 31... Rg8
{[%clk 0:00:44.4]} 32. g3 {[%clk 0:00:14.5]} 32... Re8 {[%clk 0:00:39.2]} 33.
Rf8 {[%clk 0:00:09.6]} 33... Rxf8 {[%clk 0:00:37.7]} 34. Rxf8+ {[%clk
0:00:10.5]} 34... Kc7 {[%clk 0:00:37.8]} 35. Rf7+ {[%clk 0:00:10.9]} 35... Kb6
{[%clk 0:00:34.5]} 36. Rf3 {[%clk 0:00:11]} 36... Bxa3 {[%clk 0:00:33.2]} 37. g4
{[%clk 0:00:11.4]} 37... Bb2 {[%clk 0:00:33.4]} 38. g5 {[%clk 0:00:11.4]} 38...
Rc2 {[%clk 0:00:26.6]} 39. h4 {[%clk 0:00:02.7]} 39... Rxc3 {[%clk 0:00:24.8]}
40. Rxc3 {[%clk 0:00:02.1]} 40... Bxc3 {[%clk 0:00:25.7]} 41. h5 {[%clk
0:00:02.3]} 41... Bxb4 {[%clk 0:00:21.5]} 42. h6 {[%clk 0:00:02]} 42... Bd2
{[%clk 0:00:15.4]} 43. h7 {[%clk 0:00:01.3]} 43... Bc3 {[%clk 0:00:16.1]} 44.
Kf2 {[%clk 0:00:01.6]} 44... a5 {[%clk 0:00:16.5]} 45. Ke3 {[%clk 0:00:02.1]}
45... a4 {[%clk 0:00:17.1]} 0-1

[Event "*** Titled Tuesday Blitz"]
[Site "Chess.com"]
[Date "2021.02.16"]
[Round "5"]
[White "anon102030"]
[Black "JoakimVonAnd"]
[Result "1/2-1/2"]
[WhiteElo "2718"]
[BlackElo "2562"]
[TimeControl "180+1"]
[EndTime "10:58:23 PST"]
[Termination "Game drawn by repetition"]

1. e4 {[%clk 0:03:00.9]} 1... c6 {[%clk 0:02:58.3]} 2. d3 {[%clk 0:03:00.4]}
2... d5 {[%clk 0:02:58.5]} 3. Nd2 {[%clk 0:03:00.7]} 3... Nf6 {[%clk 0:02:57.8]}
4. g3 {[%clk 0:03:00.3]} 4... Bg4 {[%clk 0:02:56.4]} 5. Be2 {[%clk 0:02:54.2]}
5... Bxe2 {[%clk 0:02:54.6]} 6. Qxe2 {[%clk 0:02:33.2]} 6... e6 {[%clk
0:02:47.4]} 7. Ngf3 {[%clk 0:02:31.4]} 7... Be7 {[%clk 0:02:43]} 8. O-O {[%clk
0:02:30.7]} 8... O-O {[%clk 0:02:40.7]} 9. b3 {[%clk 0:02:27.9]} 9... Nbd7
{[%clk 0:02:38.3]} 10. Bb2 {[%clk 0:02:16.2]} 10... a5 {[%clk 0:02:36.7]} 11. a4
{[%clk 0:02:15]} 11... Nc5 {[%clk 0:02:26.3]} 12. Rfe1 {[%clk 0:02:09.6]} 12...
Qc7 {[%clk 0:02:24.4]} 13. Rad1 {[%clk 0:01:54.3]} 13... Rfd8 {[%clk 0:02:23]}
14. e5 {[%clk 0:01:19.5]} 14... Nfd7 {[%clk 0:02:13.6]} 15. d4 {[%clk
0:01:17.4]} 15... Na6 {[%clk 0:02:13.5]} 16. Nf1 {[%clk 0:00:44.5]} 16... c5
{[%clk 0:02:11.3]} 17. c3 {[%clk 0:00:42.7]} 17... cxd4 {[%clk 0:02:06.5]} 18.
cxd4 {[%clk 0:00:41.3]} 18... Rdc8 {[%clk 0:02:02.3]} 19. Ne3 {[%clk 0:00:36.5]}
19... Qb6 {[%clk 0:02:02]} 20. Nd2 {[%clk 0:00:29.7]} 20... Nb4 {[%clk
0:01:56.2]} 21. Rc1 {[%clk 0:00:27.7]} 21... Na2 {[%clk 0:01:51.8]} 22. Rxc8+
{[%clk 0:00:25.9]} 22... Rxc8 {[%clk 0:01:52.7]} 23. f4 {[%clk 0:00:26.3]} 23...
Nc3 {[%clk 0:01:20.1]} 24. Qd3 {[%clk 0:00:24.3]} 24... Ne4 {[%clk 0:01:18.6]}
25. Nxe4 {[%clk 0:00:18.3]} 25... dxe4 {[%clk 0:01:19.5]} 26. Qxe4 {[%clk
0:00:18.9]} 26... Qxb3 {[%clk 0:01:19.7]} 27. Ba1 {[%clk 0:00:16.6]} 27... Qxa4
{[%clk 0:01:12.1]} 28. Qxb7 {[%clk 0:00:14.8]} 28... Rb8 {[%clk 0:01:09.3]} 29.
Qe4 {[%clk 0:00:12.8]} 29... Nc5 {[%clk 0:01:04.6]} 30. Qf3 {[%clk 0:00:10.9]}
30... Nd3 {[%clk 0:01:01.1]} 31. Rd1 {[%clk 0:00:09.9]} 31... Nb2 {[%clk
0:00:34.6]} 32. Bxb2 {[%clk 0:00:08.8]} 32... Rxb2 {[%clk 0:00:35.5]} 33. f5
{[%clk 0:00:06.7]} 33... exf5 {[%clk 0:00:20.2]} 34. Nxf5 {[%clk 0:00:07.6]}
34... Bf8 {[%clk 0:00:20.6]} 35. d5 {[%clk 0:00:07.1]} 35... Qc2 {[%clk
0:00:20.4]} 36. d6 {[%clk 0:00:03.4]} 36... Qxh2+ {[%clk 0:00:19.5]} 37. Kf1
{[%clk 0:00:04]} 37... Qh3+ {[%clk 0:00:13.4]} 38. Kg1 {[%clk 0:00:02.5]} 38...
Qh2+ {[%clk 0:00:13.4]} 39. Kf1 {[%clk 0:00:03.1]} 39... Qh3+ {[%clk 0:00:11.7]}
40. Ke1 {[%clk 0:00:03.1]} 40... Qh2 {[%clk 0:00:09.7]} 41. Kf1 {[%clk
0:00:03.2]} 1/2-1/2